Workbook

Sheet пн 1нед
A1: Школа | B1: СОШ с. С 7-11 лет | E1: Отд./корп | F1: 1 неделя | I1: День | J1: понедельник
A3: Прием пищи | B3: Раздел | C3: № рец. | D3: Блюдо | E3: Выход, г | F3: Цена | G3: Калорийность | H3: Белки | I3: Жиры | J3: Углеводы
A4: Завтрак | B4: 2 блюдо | C4: 445,37 | D4: Котлеты мясные с томатным соусом | E4: 90 | F4: 45.00 | G4: 178.98 | H4: 9,87 | I4: 11,79 | J4: 8,34
B5: гор.напиток | C5: 283 | D5: Чай с сахаром | E5: 200 | F5: 4.20 | G5: 39,9 | H5: 0 | I5: 0 | J5: 9,98
B6: гарнир | C6: 302.00 | D6: Каша гречневая вязкая с маслом | E6: 155 | F6: 16.35 | G6: 134.68 | H6: 4.77 | I6: 4.86 | J6: 21
B7: хлеб | C7: 1,1 | D7: Хлеб пшеничный обогащенный витаминами для детского питания | E7: 30 | F7: 2.37 | G7: 78 | H7: 2,4 | I7: 0,3 | J7: 16,5
B8: хлеб черн. | C8: 1,2 | D8: Хлеб ржано-пшеничный для детского питания | E8: 30 | F8: 1.65 | G8: 66 | H8: 2.40 | I8: 0,3 | J8: 13,8
E9: =E4+E5+E6+E7+E8 -> 505 | F9: =F4+F5+F6+F7+F8 -> 69.57 | G9: 498 | H9: 19 | I9: 17 | J9: 70
A12: Обед | B12: закуска
B13: 1 блюдо | C13: 66.63 | D13: Суп-лапша (вермишель) | E13: 200 | F13: 16.00 | G13: 97.08 | H13: 2.22 | I13: 4.23 | J13: 12.49
B14: 2 блюдо | C14: 80.55 | D14: Рыба, тушенная с овощами(филе минтая) | E14: 90 | F14: 37.00 | G14: 125 | H14: 8.1 | I14: 17 | J14: 2.5
B15: гарнир | C15: 211.06 | D15: Макаронные изделия отварные с маслом | E15: 190 | F15: 16.00 | G15: 246 | H15: 10 | I15: 4 | J15: 44.48
B16: сладкое | C16: 305,11 | D16: Витаминизированный кисель | E16: 200 | F16: 5.00 | G16: 95 | J16: 23.5
B17: хлеб бел. | C17: 1,1 | D17: Хлеб пшеничный обогащенный витаминами для детского питания | E17: 30 | F17: 2.37 | G17: 78 | H17: 2,4 | I17: 0,3 | J17: 16,5
B18: хлеб черн. | C18: 1,2 | D18: Хлеб ржано-пшеничный для детского питания | E18: 30 | F18: 1.65 | G18: 66 | H18: 2.40 | I18: 0,3 | J18: 13,8
E19: =E13+E14+E16+E17+E18+E15 -> 740 | F19: =F13+F14+F16+F17+F18+F15 -> 78.02 | G19: 707.08 | H19: 25.12 | I19: 25.83 | J19: 113.27

Sheet вт 1 нед
A1: Школа | B1: СОШ с. С 7-11 лет | E1: Отд./корп | F1: 1 неделя | I1: День | J1: вторник
A3: Прием пищи | B3: Раздел | C3: № рец. | D3: Блюдо | E3: Выход, г | F3: Цена | G3: Калорийность | H3: Белки | I3: Жиры | J3: Углеводы
A4: Завтрак | B4: 2 блюдо | C4: 38/9 | D4: Пельмени отварные | E4: 180 | F4: 49.00 | G4: 363 | H4: 14 | I4: 18 | J4: 25
B5: гор.напиток | C5: 285 | D5: Чай с лимоном и сахаром | E5: 200 | F5: 5.50 | G5: 42,28 | H5: 0,06 | I5: 0,01 | J5: 17
B6: хлеб | C6: 1,1 | D6: Хлеб пшеничный обогащенный витаминами для детского питания | E6: 30 | F6: 1.65 | G6: 78 | H6: 2,4 | I6: 0,3 | J6: 20
B7: сладкое | C7: 86.12 | D7: Сок фруктовый | E7: 200 | F7: 13.42 | G7: 92.00 | H7: 1.00 | I7: 0.20 | J7: 20
E8: 610 | F8: =F4+F5+F6+F7 -> 69.57 | G8: 575.28 | H8: 17.46 | I8: 18.51 | J8: 82.20
A12: Обед | B12: закуски
B13: 1 блюдо | C13: 58 | D13: Суп картофельный | E13: 250 | F13: 8.24 | G13: 107 | H13: 2.4 | I13: 2.5 | J13: 18.1
B14: 2 блюдо | C14: 446 | D14: Котлеты куриные с томатным соусом | E14: 90 | F14: 39.00 | G14: 172.6 | H14: 9.5 | I14: 13 | J14: 8
B15: гарнир | C15: 610.03 | D15: Рис припущенный | E15: 150 | F15: 13.48 | G15: 208 | H15: 8 | I15: 9 | J15: 30
B16: сладкое | C16: 293 | D16: Компот из смеси сухофруктов | E16: 200 | F16: 14.00 | G16: 128.6 | H16: 0.44 | I16: 0.09 | J16: 32.92
B17: хлеб бел. | C17: 1.1 | D17: Хлеб пшеничный обогащенный витаминами для детского питания | E17: 30 | F17: 1.65 | G17: 78 | H17: 2,4 | I17: 0,3 | J17: 13
B18: хлеб черн. | C18: 1.2 | D18: Хлеб ржано-пшеничный для детского питания | E18: 30 | F18: 1.65 | G18: 66 | H18: 2,4 | I18: 0,3 | J18: 13,8
E19: =E13+E14+E15+E16+E17+E18 -> 750 | F19: =F13+F14+F15+F16+F17+F18 -> 78.02 | G19: =G13+G14+G15+G16+G17+G18 -> 760.20 | H19: =H13+H14+H15+H16+H17+H18 -> 25.14 | I19: =I13+I14+I15+I16+I17+I18 -> 25.19 | J19: =J13+J14+J15+J16+J17+J18 -> 115.82

Sheet ср 1 нед
A1: Школа | B1: СОШ с. С 7-11 лет | E1: Отд./корп | F1: 1 неделя | I1: День | J1: среда
A3: Прием пищи | B3: Раздел | C3: № рец. | D3: Блюдо | E3: Выход, г | F3: Цена | G3: Калорийность | H3: Белки | I3: Жиры | J3: Углеводы
A4: Завтрак | B4: гор.блюдо | C4: 56.14 | D4: Борщ со сметаной, с мясом птицы(филе) | E4: 280 | F4: 45.00 | G4: 129 | H4: 7.25 | I4: 10 | J4: 11.7
B5: гор.напиток | C5: 305,11 | D5: Витаминизированный кисель | E5: 200 | F5: 9.92 | G5: 97 | J5: 23.5
B6: хлеб черн. | C6: 421.11 | D6: Хлеб ржано-пшеничный для детского питания | E6: 40 | F6: 1.65 | G6: 100 | H6: 3.20 | I6: 0.4 | J6: 18.4
B7: хлеб | C7: 1.30 | D7: Бутерброд с маслом с сыром | E7: 45 | F7: 13.00 | G7: 146.05 | H7: 5.07 | I7: 7.00 | J7: 17
E9: =E4+E5+E6+E7+E8 -> 565 | F9: =F4+F5+F6+F7 -> 69.57 | G9: =G4+G5+G6+G7 -> 472.05 | H9: 15.52 | I9: 17.40 | J9: 70.17
A12: Обед | B12: закуска | C12: 21 | D12: Салат витаминный | E12: 80 | F12: 15.00 | G12: 72 | H12: 1 | I12: 4 | J12: 9
B13: 1 блюдо | C13: 129.14 | D13: Суп картофельный с горохом и гренками | E13: 270 | F13: 14.15 | G13: 230 | H13: 8 | I13: 4.5 | J13: 32
B14: 2 блюдо | C14: 684 | D14: Жаркое по-домашнему из мяса птицы ( филе) | E14: 150 | F14: 37.00 | G14: 200 | H14: 11 | I14: 16 | J14: 30
B15: гарнир
B16: сладкое | C16: 283 | D16: Чай с сахаром | E16: 200 | F16: 8.02 | G16: 39,9 | J16: 9,98
B17: хлеб бел. | C17: 420.02 | D17: Хлеб пшеничный обогащенный витаминами для детского питания | E17: 40 | F17: 2.20 | G17: 104 | H17: 3.2 | I17: 0.8 | J17: 22
B18: хлеб черн. | C18: 1.2 | D18: Хлеб ржано-пшеничный для детского питания | E18: 30 | F18: 1.65 | G18: 66 | H18: 2.40 | I18: 0.3 | J18: 13.8
E19: 770 | F19: =F12+F13+F14+F15+F16+F17+F18 -> 78.02 | G19: =G12+G13+G14+G15+G16+G17+G18 -> 711.90 | H19: 25.90 | I19: 25.60 | J19: 116.78

Sheet чт 1 нед
A1: Школа | B1: СОШ с. С 7-11 лет | E1: Отд./корп | F1: 1 неделя | I1: День | J1: четверг
A3: Прием пищи | B3: Раздел | C3: № рец. | D3: Блюдо | E3: Выход, г | F3: Цена | G3: Калорийность | H3: Белки | I3: Жиры | J3: Углеводы
A4: Завтрак | B4: гор.блюдо | C4: 131.81 | D4: Плов из мяса птицы (филе) | E4: 200 | F4: 50.00 | G4: 365.67 | H4: 14.00 | I4: 18.00 | J4: 40
B5: гор.напиток | C5: 302 | D5: Напиток из плодов шиповника | E5: 200 | F5: 5.20 | G5: 111 | H5: 0.6 | I5: 0.2 | J5: 15
B6: хлеб | C6: 420.02 | D6: Хлеб пшеничный обогащенный витаминами для детского питания | E6: 40 | F6: 2.13 | G6: 104 | H6: 3.2 | I6: 0.4 | J6: 22
B7: закуска | C7: 1.25 | D7: Огурец соленый порционно | E7: 60 | F7: 12.24 | G7: 12 | H7: 0.57 | I7: 0.1 | J7: 2.4
E8: =E4+E5+E6+E7 -> 500 | F8: =F4+F5+F6+F7 -> 69.57 | G8: =G4+G5+G6+G7 -> 592.67 | H8: 18.37 | I8: 18.70 | J8: 79.40
A12: Обед | B12: закуска | C12: 25.23 | D12: Салат из свеклы с растительным маслом | E12: 60 | F12: 15.00 | G12: 76.37 | H12: 1.12 | I12: 5.07 | J12: 6.58
B13: 1 блюдо | C13: 53.42 | D13: Щи из свежей капусты со сметаной | E13: 210 | F13: 15.45 | G13: 72.8 | H13: 0.16 | I13: 0.16 | J13: 19
B14: 2 блюдо | C14: 38/9 | D14: Пельмени отварные | E14: 180 | F14: 34.00 | G14: 363 | H14: 19 | I14: 20 | J14: 45
B15: гарнир
B16: сладкое | C16: 294.01 | D16: Компот из свежих плодов | E16: 200 | F16: 10.27 | G16: 68 | H16: 0.16 | I16: 0.16 | J16: 18.89
B17: хлеб бел. | C17: 1,1 | D17: Хлеб пшеничный обогащенный витаминами для детского питания | E17: 30 | F17: 1.65 | G17: 78 | H17: 2,4 | I17: 0,3 | J17: 12.5
B18: хлеб черн. | C18: 1,2 | D18: Хлеб ржано-пшеничный для детского питания | E18: 30 | F18: 1.65 | G18: 66 | H18: 2,4 | I18: 0,3 | J18: 14.8
E19: =E12+E13+E14+E16+E17+E18 -> 710 | F19: =F12+F13+F14+F16+F17+F18 -> 78.02 | G19: =G12+G13+G14+G16+G17+G18 -> 724.17 | H19: 25.24 | I19: 25.99 | J19: 116.77

Sheet пят 1 нед.
A1: Школа | B1: СОШ с. С 7-11 лет | E1: Отд./корп | F1: 1 неделя | I1: День | J1: пятница
A3: Прием пищи | B3: Раздел | C3: № рец. | D3: Блюдо | E3: Выход, г | F3: Цена | G3: Калорийность | H3: Белки | I3: Жиры | J3: Углеводы
A4: Завтрак | B4: гор.блюдо | C4: 195 | D4: Каша пшеничная молочная жидкая | E4: 185 | F4: 29.00 | G4: 213 | H4: 8 | I4: 9 | J4: 32
B5: гор.напиток | C5: 283 | D5: Чай с сахаром | E5: 200 | F5: 4.20 | G5: 39,9 | H5: 0 | I5: 0 | J5: 9,98
B6: хлеб | C6: 1.5 | D6: Бутерброд с сыром | E6: 40 | F6: 15.72 | G6: 113 | H6: 5 | I6: 7 | J6: 17
B7: хлеб | C7: 1,2 | D7: Хлеб ржано-пшеничный для детского питания | E7: 30 | F7: 1.65 | G7: 66 | H7: 2,4 | I7: 0,3 | J7: 13,8
B8: фрукт | C8: 38 | D8: Яблоко | E8: 100 | F8: 19 | G8: 47 | H8: 0.4 | I8: 0.4 | J8: 9.8
E9: 555 | F9: =F4+F5+F6+F7+F8 -> 69.57 | G9: 478.90 | H9: 15.80 | I9: 16.70 | J9: 82.58
A12: Обед | B12: закуска
B13: 1 блюдо | C13: 67.32 | D13: Свекольник со сметаной | E13: 210 | F13: 11.40 | G13: 86.4 | H13: 2.25 | I13: 4.93 | J13: 14.74
B14: 2 блюдо | C14: 506.25 | D14: Тефтели из говядины с томатным соусом | E14: 90 | F14: 39.00 | G14: 177.1 | H14: 9.66 | I14: 12.1 | J14: 21
B15: гарнир | C15: 497.02 | D15: Каша гречневая рассыпчатая с маслом | E15: 155 | F15: 18.82 | G15: 252.96 | H15: 9.04 | I15: 8.00 | J15: 40.83
B16: сладкое | C16: 285 | D16: Чай с лимоном и сахаром | E16: 200 | F16: 5.50 | G16: 46 | H16: 0,06 | I16: 0,01 | J16: 10,19
B17: хлеб бел. | C17: 1,1 | D17: Хлеб пшеничный обогащенный витаминами для детского питания | E17: 30 | F17: 1.65 | G17: 78 | H17: 2,4 | I17: 0,3 | J17: 16,5
B18: хлеб черн. | C18: 1,2 | D18: Хлеб ржано-пшеничный для детского питания | E18: 30 | F18: 1.65 | G18: 66 | H18: 2,4 | I18: 0,3 | J18: 13,8
E19: =E13+E14+E15+E16+E17+E18 -> 715 | F19: =F13+F14+F15+F17+F16+F18 -> 78.02 | G19: =G13+G14+G15+G17+G16+G18 -> 706.46 | H19: 25.81 | I19: 25.64 | J19: 117.06

Sheet пн 2 нед.
A1: Школа | B1: СОШ с. С 7-11 лет | E1: Отд./корп | F1: 2 неделя | I1: День | J1: понедельник
A3: Прием пищи | B3: Раздел | C3: № рец. | D3: Блюдо | E3: Выход, г | F3: Цена | G3: Калорийность | H3: Белки | I3: Жиры | J3: Углеводы
A4: Завтрак | B4: гор.блюдо | C4: 211.56 | D4: Макаронные изделия с тертым сыром | E4: 160 | F4: 31.92 | G4: 283.91 | H4: 9.43 | I4: 16 | J4: 25
B5: гор.напиток | C5: 293 | D5: Компот из смеси сухофруктов | E5: 200 | F5: 19.00 | G5: 128.6 | H5: 3 | I5: 0.09 | J5: 25
B6: хлеб | C6: 1,1 | D6: Хлеб пшеничный обогащенный витаминами для детского питания | E6: 30 | F6: 1.65 | G6: 78 | H6: 2,4 | I6: 0,3 | J6: 16,5
B7: сладкое | C7: 86.12 | D7: Сок фруктовый | E7: 200 | F7: 17.00 | G7: 92 | H7: 1 | I7: 0.2 | J7: 15
E8: =E4+E5+E6+E7 -> 590 | F8: =F4+F5+F6+F7 -> 69.57 | G8: =G4+G5+G6+G7 -> 582.51 | H8: 15.83 | I8: 16.59 | J8: 81.50
A12: Обед | B12: закуска
B13: 1 блюдо | C13: 54.47 | D13: Рассольник ленинградский со сметаной | E13: 210 | F13: 12.00 | G13: 88.8 | H13: 2 | I13: 4 | J13: 12
B14: 2 блюдо | C14: 445,37 | D14: Котлеты мясные с томатным соусом | E14: 90 | F14: 46.72 | G14: 178.98 | H14: 9,87 | I14: 11,79 | J14: 8,34
B15: гарнир | C15: 610.03 | D15: Рис припущенный | E15: 150 | F15: 8.00 | G15: 208 | H15: 3.79 | I15: 9 | J15: 38.96
B16: сладкое | C16: 302 | D16: Напиток из плодов шиповника | E16: 200 | F16: 8.00 | G16: 111 | H16: 4.6 | I16: 0.2 | J16: 27
B17: хлеб бел. | C17: 1,1 | D17: Хлеб пшеничный обогащенный витаминами для детского питания | E17: 30 | F17: 1.65 | G17: 78 | H17: 2,4 | I17: 0,3 | J17: 16,5
B18: хлеб черн. | C18: 1,2 | D18: Хлеб ржано-пшеничный для детского питания | E18: 30 | F18: 1.65 | G18: 66 | H18: 2,4 | I18: 0,3 | J18: 13,8
E19: 710 | F19: =F13+F14+F15+F16+F17+F18 -> 78.02 | G19: 730.78 | H19: 25.06 | I19: 25.59 | J19: 116.60

Sheet вт 2 нед.
A1: Школа | B1: СОШ с. С 7-11 лет | E1: Отд./корп | F1: 2 неделя | I1: День | J1: вторник
A3: Прием пищи | B3: Раздел | C3: № рец. | D3: Блюдо | E3: Выход, г | F3: Цена | G3: Калорийность | H3: Белки | I3: Жиры | J3: Углеводы
A4: Завтрак | B4: 2 блюдо | C4: 80.55 | D4: Рыба, тушенная с овощами(филе минтая) | E4: 90 | F4: 37.00 | G4: 125 | H4: 7 | I4: 12 | J4: 2.5
B5: гор.напиток | C5: 285 | D5: Чай с лимоном и сахаром | E5: 200 | F5: 5.50 | G5: 42,28 | H5: 0,06 | I5: 0,01 | J5: 17
B6: хлеб | C6: 420.02 | D6: Хлеб пшеничный обогащенный витаминами для детского питания | E6: 40 | F6: 2.20 | G6: 104 | H6: 3.2 | I6: 0.8 | J6: 22
B7: хлеб черн. | C7: 1,2 | D7: Хлеб ржано-пшеничный для детского питания | E7: 30 | F7: 1.65 | G7: 66 | H7: 2,4 | I7: 0,3 | J7: 13,8
B8: гарнир | C8: 302 | D8: Каша гречневая вязкая с маслом | E8: 155 | F8: 23.22 | G8: 134.68 | H8: 4.77 | I8: 4.86 | J8: 21
E9: =E4+E5+E6+E7+E8 -> 515 | F9: =F4+F5+F6+F7+F8 -> 69.57 | G9: =G4+G5+G6+G7+G8 -> 471.96 | H9: 17.43 | I9: 17.97 | J9: 76.78
A12: Обед | B12: закуска
B13: 1 блюдо | C13: 66.64 | D13: Суп-лапша (вермишель)с мясом птицы (филе) | E13: 270 | F13: 41.15 | G13: 147 | H13: 14 | I13: 4.65 | J13: 12.59
B14: 2 блюдо | C14: 206/1 | D14: Плов с изюмом | E14: 180 | F14: 25.00 | G14: 348.3 | H14: 6.2 | I14: 20 | J14: 53
B15: гарнир
B16: сладкое | C16: 283 | D16: Чай с сахаром | E16: 200 | F16: 8.02 | G16: 39,9 | J16: 14
B17: хлеб бел. | C17: 420.02 | D17: Хлеб пшеничный обогащенный витаминами для детского питания | E17: 40 | F17: 2.20 | G17: 104 | H17: 3.2 | I17: 0.8 | J17: 23
B18: хлеб черн. | C18: 1,2 | D18: Хлеб ржано-пшеничный для детского питания | E18: 30 | F18: 1.65 | G18: 66 | H18: 2,4 | I18: 0,3 | J18: 13,8
E19: =E13+E14+E15+E16+E17+E18 -> 720 | F19: =F13+F14+F15+F16+F17+F18 -> 78.02 | G19: =G13+G14+G15+G16+G17+G18 -> 705.20 | H19: 25.80 | I19: 25.75 | J19: 116.39

Sheet ср 2 нед.
A1: Школа | B1: СОШ с. С 7-11 лет | E1: Отд./корп | F1: 2 неделя | I1: День | J1: среда
A3: Прием пищи | B3: Раздел | C3: № рец. | D3: Блюдо | E3: Выход, г | F3: Цена | G3: Калорийность | H3: Белки | I3: Жиры | J3: Углеводы
A4: Завтрак | B4: гор.блюдо | C4: ттк 129,16 | D4: Суп гороховый с гренками,с мясом птицы (филе) | E4: 290 | F4: 43.92 | G4: 225.3 | H4: 13.45 | I4: 4.7 | J4: 31.6
B5: гор.напиток | C5: 305,11 | D5: Витаминизированный кисель | E5: 200 | F5: 5.00 | G5: 95 | J5: 23.5
B6: хлеб | C6: 1,1 | D6: Бутерброд с маслом | E6: 40 | F6: 19.00 | G6: 144.1 | H6: 2.48 | I6: 12 | J6: 14
B7: хлеб | C7: 1,2 | D7: Хлеб ржано-пшеничный для детского питания | E7: 30 | F7: 1.65 | G7: 66 | H7: 2,4 | I7: 0,3 | J7: 13,8
E8: =E4+E5+E6+E7 -> 560 | F8: =F4+F5+F6+F7 -> 69.57 | G8: =G4+G5+G6+G7 -> 530.40 | H8: 18.33 | I8: 17.00 | J8: 82.90
A12: Обед | B12: закуска | C12: 25.23 | D12: Салат из свеклы с растительным маслом | E12: 60 | F12: 12.00 | G12: 79 | H12: 1.12 | I12: 5.07 | J12: 8
B13: 1 блюдо | C13: 53.42 | D13: Щи из свежей капусты со сметаной | E13: 210 | F13: 22.00 | G13: 80 | H13: 0.16 | I13: 0.16 | J13: 20
B14: 2 блюдо | C14: 97.64 | D14: Жаркое по-домашнему с говядиной | E14: 180 | F14: 38.02 | G14: 280 | H14: 12 | I14: 16 | J14: 25
B15: гарнир
B16: сладкое | C16: 289 | D16: Какао с молоком | E16: 200 | F16: 2.15 | G16: 98 | H16: 6.6 | I16: 3.3 | J16: 13.7
B17: хлеб бел. | C17: 420.02 | D17: Хлеб пшеничный обогащенный витаминами для детского питания | E17: 40 | F17: 2.20 | G17: 104 | H17: 3.2 | I17: 0.4 | J17: 22
B18: хлеб черн. | C18: 1,2 | D18: Хлеб ржано-пшеничный для детского питания | E18: 30 | F18: 1.65 | G18: 66 | H18: 2,4 | I18: 0,3 | J18: 13,8
E19: =E12+E13+E14+E15+E16+E17+E18 -> 720 | F19: =F12+F13+F14+F15+F16+F17+F18 -> 78.02 | G19: 707 | H19: 25.48 | I19: 25.23 | J19: 102.5

Sheet чт 2 нед.
A1: Школа | B1: СОШ с. С 7-11 лет | E1: Отд./корп | F1: 2 неделя | I1: День | J1: четверг
A3: Прием пищи | B3: Раздел | C3: № рец. | D3: Блюдо | E3: Выход, г | F3: Цена | G3: Калорийность | H3: Белки | I3: Жиры | J3: Углеводы
A4: Завтрак | B4: 2 блюдо | C4: 506.25 | D4: Тефтели из говядины с томатным соусом | E4: 90 | F4: 43.90 | G4: 177.1 | H4: 6 | I4: 12.1 | J4: 21
B5: гор.напиток | C5: 283 | D5: Чай с сахаром | E5: 200 | F5: 8.02 | G5: 39,9 | J5: 14
B6: хлеб | C6: 1,1 | D6: Хлеб пшеничный обогащенный витаминами для детского питания | E6: 30 | F6: 1.65 | G6: 78 | H6: 2,4 | I6: 0,3 | J6: 16,5
B7: гарнир | C7: 211.06 | D7: Макаронные изделия отварные с маслом | E7: 190 | F7: 16.00 | G7: 246 | H7: 10 | I7: 4.44 | J7: 29
E9: =E4+E5+E6+E7+E8 -> 510 | F9: =F4+F5+F6+F7+F8 -> 69.57 | G9: =G4+G5+G6+G7+G8 -> 541 | H9: 18.40 | I9: 16.84 | J9: 80.50
A12: Обед | B12: закуска
B13: 1 блюдо | C13: 56.64 | D13: Борщ с капустой и картофелем со сметаной | E13: 205 | F13: 14.90 | G13: 77.6 | H13: 1.36 | I13: 4 | J13: 9.28
B14: 2 блюдо | C14: 80.55 | D14: Рыба, тушенная с овощами(филе минтая) | E14: 90 | F14: 37.00 | G14: 125 | H14: 9.15 | I14: 15 | J14: 2.5
B15: гарнир | C15: 497.02 | D15: Каша гречневая рассыпчатая с маслом | E15: 155 | F15: 12.00 | G15: 280.00 | H15: 9.04 | I15: 5.98 | J15: 40.83
B16: сладкое | C16: 294.01 | D16: Компот из свежих плодов | E16: 200 | F16: 10.27 | G16: 68 | H16: 0.16 | I16: 0.16 | J16: 18.89
B17: хлеб бел. | C17: 420.02 | D17: Хлеб пшеничный обогащенный витаминами для детского питания | E17: 40 | F17: 2.20 | G17: 104 | H17: 3.2 | I17: 0.4 | J17: 22
B18: хлеб черн. | C18: 1,2 | D18: Хлеб ржано-пшеничный для детского питания | E18: 30 | F18: 1.65 | G18: 66 | H18: 2,4 | I18: 0,3 | J18: 13,8
E19: =E13+E14+E15+E16+E17+E18 -> 720 | F19: =F13+F14+F15+F16+F17+F18 -> 78.02 | G19: =G13+G14+G15+G16+G17+G18 -> 720.60 | H19: 25.31 | I19: 25.84 | J19: 107.30

Sheet пт 2 нед.
A1: Школа | B1: СОШ с. С 7-11 лет | E1: Отд./корп | F1: 2 неделя | I1: День | J1: пятница
A3: Прием пищи | B3: Раздел | C3: № рец. | D3: Блюдо | E3: Выход, г | F3: Цена | G3: Калорийность | H3: Белки | I3: Жиры | J3: Углеводы
A4: Завтрак | B4: гор.блюдо | C4: 493.03 | D4: Каша молочная Дружба с маслом | E4: 160 | F4: 27.87 | G4: 215 | H4: 12 | I4: 17 | J4: 21
B5: гор.напиток | C5: 293 | D5: Компот из смеси сухофруктов | E5: 200 | F5: 18.50 | G5: 128.6 | H5: 0.44 | I5: 0.09 | J5: 30
B6: хлеб | C6: 420.02 | D6: Хлеб пшеничный обогащенный витаминами для детского питания | E6: 40 | F6: 2.20 | G6: 104 | H6: 3.20 | I6: 0.40 | J6: 22
B7: фрукт | C7: 38 | D7: Яблоко | E7: 100 | F7: 21 | G7: 47 | H7: 0.4 | I7: 0.4 | J7: 9.8
E9: =E4+E5+E6+E7+E8 -> 500 | F9: =F4+F5+F6+F7+F8 -> 69.57 | G9: =G4+G5+G6+G7+G8 -> 494.60 | H9: 16.04 | I9: 17.89 | J9: 82.80
A12: Обед | B12: закуска | C12: 21 | D12: Салат витаминный | E12: 80 | F12: 15.00 | G12: 89 | H12: 1 | I12: 4 | J12: 9
B13: 1 блюдо | C13: 65.08 | D13: Суп с гречневой крупой | E13: 200 | F13: 15.00 | G13: 85 | H13: 2.02 | I13: 2.45 | J13: 12.3
B14: 2 блюдо | C14: 131.8 | D14: Плов из мяса птицы (филе) | E14: 180 | F14: 39.17 | G14: 266.18 | H14: 17.00 | I14: 18.00 | J14: 27.28
B15: гарнир
B16: сладкое | C16: 305,11 | D16: Витаминизированный кисель | E16: 200 | F16: 5.00 | G16: 95 | J16: 23.5
B17: хлеб бел. | C17: 420.02 | D17: Хлеб пшеничный обогащенный витаминами для детского питания | E17: 40 | F17: 2.20 | G17: 104 | H17: 3.2 | I17: 0.4 | J17: 22
B18: хлеб черн. | C18: 1,2 | D18: Хлеб ржано-пшеничный для детского питания | E18: 30 | F18: 1.65 | G18: 66 | H18: 2,4 | I18: 0,3 | J18: 13,8
E19: =E12+E13+E14+E15+E16+E17+E18 -> 730 | F19: =F12+F13+F14+F15+F16+F17+F18 -> 78.02 | G19: =G12+G13+G14+G15+G16+G17+G18 -> 705.18 | H19: =H12+H13+H14+H15+H16+H17+H18 -> 25.92 | I19: =I12+I13+I14+I15+I16+I17+I18 -> 25.15 | J19: =J12+J13+J14+J15+J16+J17+J18 -> 107.88
